Cogmind - Beta 9.4 @@@ ROGUE MODE // 2020.03.27 @ 15:25:18 Player: erp.lsf Result: Destroyed by as-34671 with Assembled Rifle Performance ------------- Evolutions (0) 0 Regions Visited (4) 800 Robots Destroyed (14) 70 Value Destroyed (351) 351 Prototype IDs (0) 0 Alien Tech Used (0) 0 Bonus (0) 0 TOTAL SCORE: 1221 Bonus ------- None Cogmind --------- Core Integrity 0/250 Matter 274/300 Energy 100/100 System Corruption 0% Temperature Cool (30) Movement Rolling (110) Ox1 Location -9/Mines Parts ------- > --- POWER (1) -------- (None) > --- PROPULSION (2) --- Compact Wheel > --- UTILITY (2) ------ High-capacity Storage Unit > --- WEAPON (2) ------- (None) > --- INVENTORY (12) --- Aluminum Leg Compact Wheel Compact Wheel High-capacity Storage Unit High-capacity Storage Unit Medium Matter Pod (100) Light Armor Plating EM Pulse Gun Peak State ------------ > --- POWER ------------ Light Nuclear Core > --- PROPULSION ------- Wheel Compact Wheel > --- UTILITY ---------- High-capacity Storage Unit Core Shielding > --- WEAPON ----------- Particle Gun > --- INVENTORY -------- Aluminum Leg Compact Wheel Compact Wheel High-capacity Storage Unit High-capacity Storage Unit Medium Matter Pod Light Armor Plating EM Pulse Gun Rocket Launcher [Rating: 10] Favorites ----------- Power Light Ion Engine Engine Light Ion Engine Power Core Light Nuclear Core Propulsion Compact Wheel Wheel Compact Wheel Utility Core Shielding Storage Large Storage Unit Protection Core Shielding Weapon Assault Rifle Energy Gun EM Pulse Gun Ballistic Gun Assault Rifle Launcher Grenade Launcher Build | -11 -10 -10 -10 -9 ------- Run | Scr Mat Min Exi Min Slots Evolved . | . . . . . Power . | . . . . . Propulsion . | . . . . . Utility . | . . . . . Weapon . | . . . . . Parts Attached 22 | 6 8 2 1 5 Power 5 | 1 2 . . 2 Engine 4 | 1 2 . . 1 Core 1 | . . . . 1 Reactor . | . . . . . Propulsion 2 | 2 . . . . Treads . | . . . . . Leg . | . . . . . Wheel 2 | 2 . . . . Hover . | . . . . . Flight . | . . . . . Utility 4 | 1 2 . 1 . Device . | . . . . . Storage 3 | 1 1 . 1 . Processor . | . . . . . Hackware . | . . . . . Protection 1 | . 1 . . . Artifact . | . . . . . Weapon 11 | 2 4 2 . 3 Energy Gun 2 | . 1 . . 1 Energy Cannon . | . . . . . Ballistic Gun 6 | 2 3 1 . . Ballistic Cannon . | . . . . . Launcher 3 | . . 1 . 2 Special Weapon . | . . . . . Impact Weapon . | . . . . . Slashing Weapon . | . . . . . Piercing Weapon . | . . . . . Special Melee Weapon . | . . . . . Unidentified Prototypes . | . . . . . Parts Lost 11 | . 2 . . 9 Power 3 | . . . . 3 Propulsion 1 | . . . . 1 Utility 1 | . . . . 1 Weapon 6 | . 2 . . 4 Highest Loss Streak 7 | . 2 . . 7 Average Slot Usage (%) 98 | . 95 100 100 98 Engine 13 | . 14 14 14 13 Wheel 27 | . 28 28 28 27 Storage 14 | . 14 14 14 14 Protection 13 | . 12 14 14 14 Energy Gun 11 | . . 14 14 18 Ballistic Gun 15 | . 24 13 14 7 Naked Turns . | . . . . . Heaviest Build 41 | 9 24 24 40 41 Greatest Support 26 | 26 26 26 26 26 Greatest Overweight (x) 1 | . . . 1 1 Average Overweight (x) . | . . . . 1 Largest Inventory Capacity 12 | 6 10 10 12 12 Average Capacity 10 | 5 8 10 11 12 Most Carried 10 | 2 7 7 9 10 Average Carried 7 | 1 5 6 8 9 Final Capacity 12 | 6 10 10 12 12 Final Carried 9 | 2 5 7 9 8 Class Distribution -------------------- 100% | Mutant Dominant Class ---------------- Mutant | -10/Materials Mutant | -10/Mines Mutant | -10/Exiles Mutant | -9/Mines Resources | -11 -10 -10 -10 -9 ----------- Run | Scr Mat Min Exi Min Matter Collected 593 | 169 334 40 . 50 Remotely . | . . . . . Salvage Created 409 | . 224 78 . 107 Parts 20 | . 14 3 . 3 Haulers Intercepted . | . . . . . Recyclers Shooed . | . . . . . Parts Field Recycled . | . . . . . Retrieved Matter . | . . . . . Parts Self-Destructed . | . . . . . Prevented . | . . . . . Kills | -11 -10 -10 -10 -9 ------- Run | Scr Mat Min Exi Min Combat Hostiles Destroyed 14 | . 7 2 . 5 Guns 9 | . 7 . . 2 AOE 5 | . . 2 . 3 Classes Destroyed 3 | . 2 . . 1 Swarmer 3 | . 3 . . . Grunt 8 | . 4 2 . 2 Assembled 3 | . . . . 3 Best Kill Streak 3 | . 3 2 . 3 Combat Bots Only 3 | . 3 2 . 3 Max Kills in Single Turn 2 | . 2 2 . 2 Gunslinging 1 | . 1 . . . Exploded 2 | . . 2 . 2 Melee . | . . . . . Uniques/NPCs Destroyed . | . . . . . Combat | -11 -10 -10 -10 -9 -------- Run | Scr Mat Min Exi Min Damage Taken 1172 | . 577 . . 595 Core 250 | . 126 . . 124 Absorbed by Shields . | . . . . . Core Remaining (%) 100 | 100 . . . . Volleys Fired 50 | . 33 1 . 16 Largest 2 | . 2 2 . 2 Hottest 105 | . 40 70 . 105 Shots Fired 93 | . 61 2 . 30 Gun 89 | . 61 1 . 27 Cannon . | . . . . . Launcher 4 | . . 1 . 3 Special . | . . . . . Kinetic 71 | . 61 . . 10 Thermal 4 | . . . . 4 Explosive 4 | . . 1 . 3 Electromagnetic 14 | . . 1 . 13 Robot Hit Streak 6 | . 5 . . 6 Robot Miss Streak 3 | . 3 . . 2 Penetration Max . | . . . . . Secondary Targets 2 | . 2 . . . Max Gunslinging Chain 1 | . 1 . . . Shots Hit Robots 56 | . 36 . . 20 Core Hits 32 | . 11 2 . 19 Critical Hits . | . . . . . Critical Kills . | . . . . . Critical Parts Destroyed . | . . . . . Melee Attacks . | . . . . . Impact . | . . . . . Slashing . | . . . . . Piercing . | . . . . . Sneak Attacks . | . . . . . Combat Hostiles . | . . . . . Follow-up Attacks . | . . . . . Damage Inflicted 1085 | . 398 79 . 608 Guns 613 | . 398 . . 215 Cannons . | . . . . . Explosions 472 | . . 79 . 393 Melee . | . . . . . Ramming . | . . . . . Kinetic 477 | . 398 . . 79 Thermal 31 | . . . . 31 Explosive 472 | . . 79 . 393 Electromagnetic 105 | . . . . 105 Impact . | . . . . . Slashing . | . . . . . Piercing . | . . . . . Highest Corruption . | . . . . . Average Corruption . | . . . . . Corruption Purged . | . . . . . Overload Shots . | . . . . . Overflow Damage 39 | . . . . 39 Projectiles . | . . . . . Explosions 39 | . . . . 39 Melee . | . . . . . Knockbacks . | . . . . . Impact . | . . . . . Kinetic . | . . . . . Secondary . | . . . . . Self-Inflicted Damage 80 | . . . . 80 Shots 2 | . . . . 2 Rammed . | . . . . . Targets Rammed . | . . . . . Kicked . | . . . . . Crushed . | . . . . . Highest Temperature 94 | . 3 9 . 94 Average Temperature 26 | . 2 6 . 34 Received Heat Transfer 378 | . 228 . . 150 Siege Activations . | . . . . . Robots Corrupted . | . . . . . Combat Hostiles . | . . . . . Parts Fried . | . . . . . Impact Corruptions . | . . . . . Robots Melted . | . . . . . Combat Hostiles . | . . . . . Parts Melted . | . . . . . Heat Transferred 74 | . . . . 74 Parts Sabotaged . | . . . . . Parts Stolen . | . . . . . Parts Stripped . | . . . . . Power Chain Reactions . | . . . . . Missiles Intercepted . | . . . . . Alert | -11 -10 -10 -10 -9 ------- Run | Scr Mat Min Exi Min Peak Influence 145 | . 145 76 . 30 Average Influence 43 | . 53 52 . 14 Maximum Alert Level . | . . . . . Low Security (%) 100 | 100 100 100 . 100 Level 1 . | . . . . . Level 2 . | . . . . . Level 3 . | . . . . . Level 4 . | . . . . . Level 5 . | . . . . . High Security . | . . . . . Max Security . | . . . . . Squads Dispatched . | . . . . . Investigation . | . . . . . Extermination . | . . . . . Reinforcement . | . . . . . Assault . | . . . . . Garrison . | . . . . . Intercept . | . . . . . Construction Impeded . | . . . . . Haulers Reinforced . | . . . . . Stealth | -11 -10 -10 -10 -9 --------- Run | Scr Mat Min Exi Min Distress Signals 3 | . 3 . . . Communications Jammed . | . . . . . Distress Signals . | . . . . . Times Spotted 28 | . 14 . . 14 Peak Tracking Total 11 | . 4 . . 11 Tactical Retreats 4 | . 4 . . . Traps | -11 -10 -10 -10 -9 ------- Run | Scr Mat Min Exi Min Traps Triggered . | . . . . . Indirectly . | . . . . . Trap Hack Attempts . | . . . . . Triggered . | . . . . . Disarmed . | . . . . . Reprogrammed . | . . . . . Reused . | . . . . . Traps Extracted . | . . . . . Installed . | . . . . . Triggered . | . . . . . Machines | -11 -10 -10 -10 -9 ---------- Run | Scr Mat Min Exi Min Machines Disabled 1 | . . 1 . . Max in Single Turn 1 | . . 1 . . Machines Sabotaged . | . . . . . Garrisons Compromised . | . . . . . Overloaded Fab Kills . | . . . . . Fab Network Shutdowns . | . . . . . Hacking | -11 -10 -10 -10 -9 --------- Run | Scr Mat Min Exi Min Machines Accessed . | . . . . . Terminals . | . . . . . Fabricators . | . . . . . Repair Stations . | . . . . . Recycling Units . | . . . . . Scanalyzers . | . . . . . Garrison Access . | . . . . . Total Hacks . | . . . . . Successful . | . . . . . Failed . | . . . . . Catastrophic . | . . . . . Database Lockouts . | . . . . . Manual . | . . . . . Terminals . | . . . . . Fabricators . | . . . . . Repair Stations . | . . . . . Recycling Units . | . . . . . Scanalyzers . | . . . . . Garrison Access . | . . . . . Terminal Hacks . | . . . . . Fabricator Hacks . | . . . . . Repair Station Hacks . | . . . . . Recycling Unit Hacks . | . . . . . Scanalyzer . | . . . . . Garrison Access Hacks . | . . . . . Unauthorized Hacks . | . . . . . Terminals . | . . . . . Fabricators . | . . . . . Repair Stations . | . . . . . Recycling Units . | . . . . . Scanalyzers . | . . . . . Garrison Access . | . . . . . Data Cores Recovered . | . . . . . Used . | . . . . . Hacking Detections . | . . . . . Full Trace Events . | . . . . . Feedback Events . | . . . . . Feedback Blocked . | . . . . . Robot Schematics Acquired . | . . . . . Robots Built . | . . . . . Matter . | . . . . . Time . | . . . . . Total Robot Build Rating . | . . . . . Part Schematics Acquired . | . . . . . Parts Built . | . . . . . Matter . | . . . . . Time . | . . . . . Total Part Build Rating . | . . . . . Parts Repaired . | . . . . . Time . | . . . . . Parts Recycled . | . . . . . Recycled Matter . | . . . . . Retrieved Matter . | . . . . . Retrieved Components . | . . . . . Parts Scanalyzed . | . . . . . Part Schematics Acquired . | . . . . . Parts Damaged . | . . . . . Bothacking | -11 -10 -10 -10 -9 ------------ Run | Scr Mat Min Exi Min Used RIF Installer . | . . . . . Robots Hacked . | . . . . . Non-combat . | . . . . . Combat . | . . . . . Robot Hacks Applied . | . . . . . Relay Couplers Released . | . . . . . Robots Rewired . | . . . . . Allies Hacked . | . . . . . Hacks Repelled . | . . . . . Allies | -11 -10 -10 -10 -9 -------- Run | Scr Mat Min Exi Min Total Allies . | . . . . . Largest Group . | . . . . . Highest-Rated Group . | . . . . . Highest-Rated Ally . | . . . . . Total Orders . | . . . . . Ally Attacks . | . . . . . Total Damage . | . . . . . Kills . | . . . . . Allies Corrupted . | . . . . . Allies Melted . | . . . . . Intel | -11 -10 -10 -10 -9 ------- Run | Scr Mat Min Exi Min Robot Analysis Total . | . . . . . Derelict Logs Recovered 3 | . . 1 . 2 Drone Launches . | . . . . . Drone Recoveries . | . . . . . Exploration | -11 -10 -10 -10 -9 ------------- Run | Scr Mat Min Exi Min Turns Passed 2230 | 45 506 565 841 273 Spaces Moved 2101 | 39 405 594 870 193 Core 2 | 2 . . . . Treads . | . . . . . Legs . | . . . . . Wheels 2099 | 37 405 594 870 193 Hover . | . . . . . Flight . | . . . . . Fastest Speed 50 | 50 90 90 90 100 Average Speed 93 | 88 90 90 96 100 Slowest Speed 100 | 100 90 90 100 100 Overloaded Moves . | . . . . . Propulsion Burnouts . | . . . . . Robots Hopped . | . . . . . Cave-ins Triggered . | . . . . . Exploration Rate (%) 64 | 3 84 99 93 45 Regions Visited 4 Branch Regions 3 Pre-discovered Areas 1 | . . 1 . . Known Exits Taken 1 | . . 1 . . Unknown Exits Taken 3 | 1 1 . 1 . Scrap Searched 1 | . . 1 . . Spaces Dug . | . . . . . Terrain Destroyed 22 | . . 2 . 20 Melee . | . . . . . Projectile . | . . . . . AOE 22 | . . 2 . 20 Actions | -11 -10 -10 -10 -9 --------- Run | Scr Mat Min Exi Min Total 2273 | 46 487 621 876 243 Wait 75 | . 25 23 1 26 Move 2097 | 38 404 593 869 193 Hop . | . . . . . Pick Up 19 | 2 9 2 3 3 Fast Attach 8 | 6 2 . . . Attach 7 | . 3 . . 4 Detach 2 | . 2 . . . Swap 7 | . 3 2 1 1 Drop 8 | . 6 . 2 . Fire 50 | . 33 1 . 16 Melee . | . . . . . Ram . | . . . . . Kick . | . . . . . Crush . | . . . . . Escape Stasis . | . . . . . Rewire . | . . . . . Trap . | . . . . . Miscellaneous . | . . . . . Route ------- -11/Scrapyard -10/Materials (discovered 3 exits: [*Mat x2] / [*Min]) -10/Mines (discovered 3 exits: [*Mat x2] / *Exi) -10/Exiles (discovered 2 exits: [*Min x2]) -9/Mines (discovered 1 exit: [*Mat]) History --------- Turn | Location | Event 11 | -11/Scrapyard | Discovered new exit (range 15) 46 | -11/Scrapyard | Entered Materials 302 | -10/Materials | Discovered new exit (range 14) 317 | -10/Materials | Build established: Mutant 344 | -10/Materials | Discovered new exit (range 15) 455 | -10/Materials | Core integrity fell below 50% 488 | -10/Materials | Discovered new exit (range 5) 552 | -10/Materials | Entered Mines 704 | -10/Mines | Discovered new exit (range 6) 705 | -10/Mines | Learned location of Storage (-8) 765 | -10/Mines | Discovered new exit (range 16) 897 | -10/Mines | Identified exit to Exiles 1045 | -10/Mines | Deemed a non-threat by the Exiles lab entrance 1117 | -10/Mines | Entered Exiles 1133 | -10/Exiles | Discovered new exit (range 15) 1166 | -10/Exiles | Met 8R-AWN 1180 | -10/Exiles | Met EX-HEX 1234 | -10/Exiles | Met EX-DEC 1249 | -10/Exiles | Visited The Gauntlet 1463 | -10/Exiles | Discovered new exit (range 14) 1561 | -10/Exiles | Met EX-BIN 1958 | -10/Exiles | Entered Mines 1962 | -9/Mines | Discovered new exit (range 5) 2001 | -9/Mines | Learned Materials terminal intel 2011 | -9/Mines | Received a Rocket Launcher from a helpful Derelict 2201 | -9/Mines | Assembled infested the area 2206 | -9/Mines | Assisted by a Guerilla fighting off Assembled 2231 | -9/Mines | Core integrity fell below 20% 2231 | -9/Mines | Destroyed by as-34671 with Assembled Rifle Last Messages --------------- squad. 02206_ A derelict emerges from the shadows: "You need to get out of here! I've been tracking a group of Assembled to figure out where they're coming from, and they're closing on this area, come on!" 02223_ as-34594 destroyed. 02223_ as-06643 destroyed. 02223_ Lgt. Ion Engine destroyed. 02223_ Destroyed Lgt. Ion Engine. 02223_ Destroyed Asb. Hover Unit. 02225_ T-07 Excavator destroyed. 02226_ Grenade Launcher destroyed. 02228_ The unstable cave ceiling collapses. 02228_ Particle Gun destroyed. 02228_ Wheel destroyed. 02230_ as-53555 destroyed. 02230_ Lgt. Nuclear Core destroyed. 02230_ Destroyed Lgt. Nuclear Core. 02230_ Rocket Launcher destroyed. 02230_ Destroyed Rocket Launcher. 02230_ Core Shielding destroyed. Map ----- +----------------------------------------------------+ | ?????????????????????????????????????????? | | ?????????????????????????????????????????? | | ?????????????????????????????????????????? | | ?????????????????????????????????????????? | | ?????????????????????????????????????????? | | ?????????????????????????????????????????? | | ?????????????????????????????????????????? | | ?????????????????????????????????????????? | | ?????????????????????????????????????????? | | ?????????????????????????????????????????? | | ?????????????????????????????????????????? | | ???????????????????????? ???????????????? | | ???????????????????????? #??????????????? | | ???????????????????????# #?????????##???? | | ?????????????????????## ?????????%=##??? | | ??????????????????#### #?????????! ???? | | ?????????????????## ##???????= #??? | | ????????????????## ###????? #??? | | ????????????????# ????? #??? | | ????????????????# ?????? ????? | | ????????????????# * ??????? ??????? | | ???????????????## #######? #???????? | | ??????????????## # ##??????? | | ???????????#### aaaa a# #??????? | | ############ = a aa #??????? | | =%! @ a #??????? | | ! ##### ##?????? | | ########### ##???# ### #?????? | | ??????????## ###????## #?????? | | ???????????####???????# #?????? | | ??????????????????????## #######?????? | | ???????????????????????#######???????????? | | ?????????????????????????????????????????? | | ?????????????????????????????????????????? | | | | | | | | | | | | | | | | | | | | | | | | | | | | | | | | | +----------------------------------------------------+ Best States ------------- Heat Dissipation 25 Energy Generation 14 Energy Capacity 160 Matter Stores 300 Matter Capacity 300 Sight Range 16 Terrain Scan Density 10 Core Shielding 20 Evasion (%) 42 Item Schematics ----------------- None Robot Schematics ------------------ None Fabricated ------------ Nothing Alien Tech Used ----------------- None Achievements -------------- None Challenges ------------ None Game ------ Seed MatterMetafiberPod Manual? 0 Play Time 00:16:32 Cumulative 22.8 hours Start 2020.03.27 @ 15:10:18 End 2020.03.27 @ 15:25:18 Sessions 1 Manual Loads 0 Difficulty Rogue Special Mode None Game No. 32 Rogue 32 Adventurer 0 Explorer 0 Win Type - Total 0 Types 0/0/0/0/0/0/0 Lore% 17 Gallery% 27 Achievement% 22 Wizard Run 0 Options --------- ASCII 0 Keyboard 1 Movement Numpad Keybinds 0 Fullscreen 2 Font 24/Smallcaps Map View 76x50 Tactical HUD 1 Map Filters NONE Filters NONE Steam 1 RUN: 268c57f2-3669-4937-b350-5cd95c28de6d